[Event "43rd Indian-chT 2023-24"]
[Site "Dharamsala"]
[Date "2024.04.02"]
[Round "7.1"]
[White "Vignesh N R"]
[Black "Adireddy Arjun"]
[Result "1-0"]
[ECO "B81"]
[WhiteElo "2525"]
[BlackElo "2299"]
[Annotator "RC"]
[PlyCount "122"]
[EventDate "2024.03.28"]
[EventType "team-tourn"]
[EventCountry "IND"]
[SourceTitle "playchess.com"]
[Source "ChessBase"]
[SourceQuality "1"]
[TimeControl "5400+30"]

1. e4 {[%emt 0:00:09]} c5 {[%emt 0:00:33]} 2. Nf3 {[%emt 0:00:08]} d6 {[%emt 0:00:06]} 3. d4 {[%emt 0:00:20]} cxd4 {[%emt 0:00:07]} 4. Nxd4 {[%emt 0:00:13]} Nf6 {[%emt 0:00:07]} 5. Nc3 {[%emt 0:00:05]} a6 {[%emt 0:00:04]} 6. h3 {[%emt 0:00:21]} e6 {[%emt 0:00:10]} 7. g4 {[%emt 0:00:07]} d5 {[%emt 0:00:05]} 8. Nde2 {[%emt 0:00:47]} Bb4 {[%emt 0:10:39]} 9. a3 {[%emt 0:01:06]} Bxc3+ {[%emt 0:02:21]} 10. Nxc3 {[%emt 0:00:02]} Nxe4 {[%emt 0:00:20]} 11. Nxe4 {[%emt 0:00:50]} dxe4 {[%emt 0:00:07]} 12. Qxd8+ {[%emt 0:02:19]} Kxd8 {[%emt 0:00:05]} 13. Bf4 {[%emt 0:00:20]} Bd7 {[%emt 0:01:39]} 14. O-O-O {[%emt 0:00:28]} Ke8 {[%emt 0:01:50]} 15. Bg2 {[%emt 0:06:36]} Bc6 {[%emt 0:00:46]} 16. Rhe1 {[%emt 0:00:15]} e3 {[%emt 0:06:10]} 17. Bxc6+ {[%emt 0:08:08]} Nxc6 {[%emt 0:00:05]} 18. Rxe3 {[%emt 0:00:03]} Rd8 {[%emt 0:00:37]} 19. Bd6 {[%emt 0:04:22]} Rd7 {[%emt 0:05:19]} 20. b4 {[%emt 0:06:51]} f6 {[%emt 0:16:55]} 21. Rxe6+ {[%emt 0:01:37]} Kf7 {[%emt 0:00:02]} 22. Re3 {[%emt 0:12:03]} Rhd8 {[%emt 0:00:07]} 23. Red3 {[%emt 0:00:02]} Ke6 {[%emt 0:00:08]} 24. Bc5 {[%emt 0:03:27]} Ne5 {[%emt 0:19:44]} 25. Rxd7 {[%emt 0:00:37]} Rxd7 {[%emt 0:00:01]} 26. Re1 {[%emt 0:07:37]} Kf7 {[%emt 0:01:09]} 27. f4 {[%emt 0:03:31]} Nc4 {[%emt 0:00:05]} 28. a4 {[%emt 0:00:14]} b6 {[%emt 0:07:05]} 29. Re4 {[%emt 0:02:43]} Nd2 {[%emt 0:00:05]} 30. Rd4 {[%emt 0:03:38]} Rxd4 {[%emt 0:00:03]} 31. Bxd4 {[%emt 0:00:04]} Nc4 {[%emt 0:00:07]} 32. f5 {[%emt 0:02:55]} Ke7 {[%emt 0:03:20]} 33. Kd1 {[%emt 0:03:19]} Kd6 {[%emt 0:01:41]} 34. Ke2 {[%emt 0:00:35]} Kd5 {[%emt 0:01:14]} 35. Kd3 {[%emt 0:00:16]} b5 {[%emt 0:01:46]} 36. axb5 {[%emt 0:00:38]} axb5 {[%emt 0:02:05]} 37. Bc5 {[%emt 0:00:39]} g6 {[%emt 0:13:00]} 38. fxg6 {[%emt 0:01:18]} Ne5+ {[%emt 0:01:19]} 39. Ke3 {[%emt 0:00:42]} Nxg6 {[%emt 0:00:22]} 40. Bd4 {[%emt 0:01:13]} f5 {[%emt 0:01:28]} 41. c3 {[%emt 0:12:25]} fxg4 {[%emt 0:01:58]} 42. hxg4 {[%emt 0:00:25]} Nf8 {[%emt 0:00:02]} 43. Kf3 {[%emt 0:00:40]} Ne6 {[%emt 0:03:28]} 44. Bf6 {[%emt 0:00:06]} Nc7 {[%emt 0:00:11]} 45. g5 {[%emt 0:02:09]} Ne8 {[%emt 0:00:01]} 46. Bh8 {[%emt 0:01:01]} Nd6 {[%emt 0:00:40]} 47. Kf4 {[%emt 0:00:18]} Kc4 {[%emt 0:02:35]} 48. Be5 {[%emt 0:00:47]} Nf7 {[%emt 0:00:08]} 49. Bd4 {[%emt 0:01:01]} Kd5 {[%emt 0:00:01]} 50. Bg7 {[%emt 0:02:14]} Nd6 {[%emt 0:00:26]} 51. Bd4 {[%emt 0:01:31]} Nf7 {[%emt 0:00:10]} 52. Bc5 {[%emt 0:03:05]} Kc4 {[%emt 0:00:46]} 53. Kf5 {[%emt 0:01:14]} Kxc3 {[%emt 0:02:46]} 54. Be7 {[%emt 0:00:04]} Kc4 {[%emt 0:00:51]} 55. Kf6 {[%emt 0:00:08]} Nh8 {[%emt 0:00:18]} 56. Kg7 {[%emt 0:00:15]} Ng6 {[%emt 0:00:06]} 57. Bc5 {[%emt 0:00:15]} Nf4 {[%emt 0:00:28]} 58. Kxh7 {[%emt 0:00:11]} Ne6 {[%emt 0:00:03]} 59. g6 {[%emt 0:00:06]} Nxc5 {[%emt 0:00:09]} 60. bxc5 {[%emt 0:00:27]} b4 {[%emt 0:00:02]} 61. g7 {[%emt 0:00:03]} Kd5 {[%emt 0:00:13]} 1-0

[Event "43rd Indian-chT 2023-24"]
[Site "Dharamsala"]
[Date "2024.04.02"]
[Round "7.2"]
[White "Sriram Adarsh Uppala"]
[Black "Das, Sayantan"]
[Result "1-0"]
[ECO "A17"]
[WhiteElo "2141"]
[BlackElo "2502"]
[Annotator "TA"]
[PlyCount "109"]
[EventDate "2024.03.28"]
[EventType "team-tourn"]
[EventCountry "IND"]
[SourceTitle "playchess.com"]
[Source "ChessBase"]
[SourceQuality "1"]
[TimeControl "5400+30"]

{[%evp 41,109,44,117,86,184,17,8,-76,99,-31,12,25,51,68,225,128,263,281,258,194,374,370,375,363,394,359,399,404,684,681,702,631,799,792,745,465,482,510,485,495,429,408,596,568,617,618,576,490,581,582,668,656,783,796,816,793,1074,935,1015,1050,1022,1006,993,922,4822,3027,29982,29983,29983,29984]} 1. Nf3 {[%emt 0:00:35]} d5 {[%emt 0:01:47]} 2. e3 {[%emt 0:00:19]} Nf6 {[%emt 0:03:14]} 3. c4 {[%emt 0:00:24]} e6 {[%emt 0:00:06]} 4. Nc3 {[%emt 0:00:11]} Bd6 {[%emt 0:01:02]} 5. b3 {[%emt 0:00:38]} O-O {[%emt 0:00:17]} 6. Bb2 {[%emt 0:00:09]} a6 {[%emt 0:01:41]} 7. Qc2 {[%emt 0:01:02]} Nc6 {[%emt 0:05:00]} 8. a3 {[%emt 0:02:23]} dxc4 {[%emt 0:05:10]} 9. bxc4 {[%emt 0:00:15]} e5 {[%emt 0:00:29]} 10. Ng5 {[%emt 0:01:08]} h6 {[%emt 0:04:27]} 11. h4 {[%emt 0:02:10]} g6 {[%emt 0:14:20]} 12. Nge4 {[%emt 0:00:49]} h5 {[%emt 0:08:46]} 13. Nxf6+ {[%emt 0:05:45]} Qxf6 {[%emt 0:00:10]} 14. c5 {[%emt 0:00:12]} Bxc5 {[%emt 0:10:52]} 15. Ne4 {[%emt 0:00:11]} Qf5 {[%emt 0:00:06]} 16. g4 {[%emt 0:00:05]} hxg4 {[%emt 0:03:27]} 17. h5 {[%emt 0:00:08]} Be7 {[%emt 0:02:55]} 18. Bd3 {[%emt 0:00:20]} Rd8 {[%emt 0:07:53]} 19. Nd6 {[%emt 0:03:39]} Rxd6 {[%emt 0:04:50]} 20. Bxf5 {[%emt 0:00:09]} Bxf5 {[%emt 0:01:31]} 21. Qb3 {[%emt 0:02:02]} Be4 {[%emt 0:06:02]} (21... Be6 $14 22. Qa4 (22. Qxb7 $2 Ra7 $19) 22... g5) 22. Rh2 {[%emt 0:01:20]} (22. Qxb7 $2 Rb8 23. Qxc7 Rxb2 (23... Bxh1 $2 24. Bxe5 Re6 25. hxg6 $19) 24. Qc8+ Rd8 25. Qxg4 Bxh1 $19) 22... Rad8 {[%emt 0:03:59]} (22... g5 $16) 23. Rd1 $2 {[%emt 0:01:01]} (23. Qxb7 $2 Rxd2 24. hxg6 g3 25. gxf7+ Kxf7 26. Qb3+ Bd5 27. Rh7+ (27. fxg3 $2 Rxh2 28. Qd3 Rxb2 $19) 27... Kg6 $19) ({Only move:} 23. hxg6 $18 Bxg6 24. Qxb7) 23... Bf3 $11 {[%emt 0:01:01] [#]} 24. Bc3 {[%emt 0:00:09]} (24. hxg6 $1 $11 {remains equal.} Rxg6 25. Rc1 (25. Qxb7 Nb4 $11)) 24... Bf8 $2 {[%emt 0:02:32] [#]} (24... Bxd1 $2 25. Qxd1 (25. Kxd1 b5 $18) 25... gxh5 26. Rxh5 $18) (24... gxh5 $1 $17 25. Qxb7 (25. Rxh5 $2 g3 $19) 25... h4) 25. h6 {[%emt 0:00:46]} (25. Qxb7 $1 $16 {Rc1 would now be deadly.} Nd4 (25... gxh5 26. Rxh5) 26. Qxc7) 25... Re6 {[%emt 0:02:16]} (25... Bxd1 $2 26. h7+ (26. Qxd1 Kh7 $16) (26. Kxd1 Re6 $18) 26... Kh8 27. Qxf7 $18 (27. Qxd1 Re6 $16) (27. Kxd1 Re6 $18)) (25... Bd5 $5 26. h7+ (26. Qxb7 $2 Nd4 $19) 26... Kh8 $11) 26. h7+ {[%emt 0:00:46]} Kh8 {[%emt 0:00:02]} 27. Qxb7 $1 {[%emt 0:00:18]} Bg7 $2 {[%emt 0:05:47]} (27... Bd6 $14 28. Rb1 Nd4) 28. Qxc7 {[%emt 0:00:42]} (28. Rc1 $18) 28... Bxd1 {[%emt 0:02:33]} (28... Re7 $16 29. Qb6 Rb8 30. Qxa6 Nd4) 29. Kxd1 $18 {[%emt 0:00:05]} f5 {[%emt 0:00:33]} 30. Kc2 {[%emt 0:00:36]} Rde8 $2 {[%emt 0:00:20]} (30... Red6 {might work better.} 31. Rh1 R8d7 32. Qc8+ Rd8) 31. Rh1 $18 {[%emt 0:01:23]} R8e7 {[%emt 0:01:21]} 32. Qc8+ {[%emt 0:00:12]} Re8 {[%emt 0:00:05]} 33. Qd7 {[%emt 0:00:14]} (33. Qxa6 $2 Nd4+ 34. exd4 Rxa6 $19) 33... R8e7 {[%emt 0:00:21]} 34. Qd5 {[%emt 0:00:07]} Re8 {[%emt 0:01:45]} (34... a5 $142 35. Rb1 (35. Bxa5 Nxa5 36. Qxa5 Rc6+ 37. Kd1 Re8 $18) 35... Kxh7) 35. Rb1 $18 {[%emt 0:00:18]} a5 {[%emt 0:00:38]} 36. Kd1 {[%emt 0:00:23]} Kxh7 {[%emt 0:00:32]} 37. Rb6 {[%emt 0:00:03]} Nb4 {[%emt 0:00:29]} 38. Qxe6 {[%emt 0:01:03]} (38. axb4 Rxb6 39. bxa5 (39. Qxa5 Reb8 $16) 39... Ra6 40. Qh1+ Kg8 $11) 38... Rxe6 {[%emt 0:00:06]} 39. Rxe6 {[%emt 0:00:05]} Nd3 {[%emt 0:00:34]} 40. Ke2 {[%emt 0:00:05]} ({Not} 40. Bxa5 Nxf2+ 41. Ke2 Ne4 $18) 40... Nc1+ {[%emt 0:00:53]} 41. Kf1 {[%emt 0:00:07]} Nd3 {[%emt 0:00:17]} (41... Nb3 $142 42. Ra6 (42. Bxe5 Nxd2+ 43. Ke2 Nc4 $18) 42... Bf8) 42. Bxa5 {[%emt 0:00:08]} Bf8 {[%emt 0:00:09]} 43. a4 {[%emt 0:00:47]} Nc5 {[%emt 0:00:26]} 44. Rxe5 {[%emt 0:01:00]} Nxa4 {[%emt 0:00:05]} 45. d4 {[%emt 0:00:12]} Kg8 {[%emt 0:00:39]} 46. Rb5 {[%emt 0:00:04]} Be7 {[%emt 0:00:36]} 47. Ke2 {[%emt 0:00:14]} Kf7 {[%emt 0:00:16]} 48. Kd3 {[%emt 0:00:24]} Ke6 {[%emt 0:00:56]} 49. Kc4 {[%emt 0:00:08]} Bh4 {[%emt 0:00:18]} 50. Be1 {[%emt 0:00:07]} Bd8 {[%emt 0:00:16]} 51. Kb3 {[%emt 0:00:11]} Nb6 {[%emt 0:00:32]} 52. Ba5 {[%emt 0:00:05]} Kd6 {[%emt 0:00:22]} 53. Bxb6 {[%emt 0:00:15]} Kc6 {[%emt 0:00:05]} 54. Bxd8 {[%emt 0:00:06]} Kxb5 {[%emt 0:00:04]} 55. Bh4 {[%emt 0:00:07]} 1-0

[Event "43rd Indian-chT 2023-24"]
[Site "Dharamsala"]
[Date "2024.04.02"]
[Round "7.3"]
[White "Swapnil, S. Dhopade"]
[Black "Pavan Karthikeya Varma Gunturi"]
[Result "1-0"]
[ECO "D45"]
[WhiteElo "2454"]
[BlackElo "1831"]
[Annotator "RC"]
[PlyCount "71"]
[EventDate "2024.03.28"]
[EventType "team-tourn"]
[EventCountry "IND"]
[SourceTitle "playchess.com"]
[Source "ChessBase"]
[SourceQuality "1"]
[TimeControl "5400+30"]

1. d4 {[%emt 0:00:03]} d5 {[%emt 0:00:10]} 2. c4 {[%emt 0:00:06]} c6 {[%emt 0:00:03]} 3. Nc3 {[%emt 0:01:56]} Nf6 {[%emt 0:00:16]} 4. e3 {[%emt 0:00:04]} e6 {[%emt 0:00:52]} 5. Nf3 {[%emt 0:00:05]} Nbd7 {[%emt 0:00:14]} 6. Be2 {[%emt 0:00:48]} Bd6 {[%emt 0:02:17]} 7. O-O {[%emt 0:00:46]} O-O {[%emt 0:01:36]} 8. b3 {[%emt 0:00:04]} b6 {[%emt 0:00:32]} 9. Bb2 {[%emt 0:00:04]} Bb7 {[%emt 0:00:36]} 10. Bd3 {[%emt 0:00:06]} Qe7 {[%emt 0:04:43]} 11. Re1 {[%emt 0:36:06]} Ba3 {[%emt 0:08:49]} 12. Bxa3 {[%emt 0:03:59]} Qxa3 {[%emt 0:00:08]} 13. Qc2 {[%emt 0:00:36]} g6 {[%emt 0:07:02]} 14. e4 {[%emt 0:00:31]} dxe4 {[%emt 0:04:28]} 15. Nxe4 {[%emt 0:00:12]} Nxe4 {[%emt 0:01:04]} 16. Bxe4 {[%emt 0:00:11]} Qd6 {[%emt 0:02:28]} 17. Rad1 {[%emt 0:05:52]} Rad8 {[%emt 0:05:45]} 18. Qc1 {[%emt 0:00:08]} f5 {[%emt 0:05:01]} 19. c5 {[%emt 0:05:49]} bxc5 {[%emt 0:03:50]} 20. Bd3 {[%emt 0:00:09]} Rf6 {[%emt 0:08:57]} 21. Bc4 {[%emt 0:01:01]} Nf8 {[%emt 0:06:52]} 22. dxc5 {[%emt 0:01:07]} Qe7 {[%emt 0:01:54]} 23. Rxd8 {[%emt 0:03:12]} Qxd8 {[%emt 0:00:10]} 24. Qa1 {[%emt 0:04:33]} Qe7 {[%emt 0:05:13]} 25. Qe5 {[%emt 0:00:08]} Bc8 {[%emt 0:02:19]} 26. b4 {[%emt 0:04:35]} Kg7 {[%emt 0:06:58]} 27. Rd1 {[%emt 0:08:31]} h6 {[%emt 0:05:08]} 28. h4 {[%emt 0:01:02]} Nd7 {[%emt 0:03:31]} 29. Qc7 {[%emt 0:00:44]} Rf8 {[%emt 0:01:58]} 30. Re1 {[%emt 0:00:56]} e5 {[%emt 0:01:04]} 31. Rxe5 {[%emt 0:09:58]} Qf6 {[%emt 0:03:07]} 32. Re6 {[%emt 0:01:18]} Qc3 {[%emt 0:01:16]} 33. Bb3 {[%emt 0:00:07]} Qxb4 {[%emt 0:01:18]} 34. Qd6 {[%emt 0:02:32]} Nf6 {[%emt 0:03:52]} 35. Rxf6 {[%emt 0:00:12]} Rxf6 {[%emt 0:00:42]} 36. Qe7+ {[%emt 0:00:03]} 1-0

[Event "43rd Indian-chT 2023-24"]
[Site "Dharamsala"]
[Date "2024.04.02"]
[Round "7.4"]
[White "Yohan Yadav Tarala"]
[Black "Gusain, Himal"]
[Result "1/2-1/2"]
[ECO "B23"]
[WhiteElo "1746"]
[BlackElo "2484"]
[Annotator "TA"]
[PlyCount "54"]
[EventDate "2024.03.28"]
[EventType "team-tourn"]
[EventCountry "IND"]
[SourceTitle "playchess.com"]
[Source "ChessBase"]
[SourceQuality "1"]
[TimeControl "5400+30"]

{[%evp 9,54,-8,0,-2,-10,2,13,-12,4,6,7,12,-7,0,0,0,22,28,0,23,31,22,24,10,21,23,31,-26,0,0,0,0,0,0,0,0,0,0,0,0,0,0,0,0,0,0,0]} 1. e4 {[%emt 0:00:30]} c5 {[%emt 0:00:31]} 2. Nc3 {[%emt 0:00:08]} Nc6 {[%emt 0:00:19]} 3. f4 {[%emt 0:00:07]} g6 {[%emt 0:00:56]} 4. Nf3 {[%emt 0:00:06]} Bg7 {[%emt 0:00:04]} 5. a4 {[%emt 0:00:39]} e6 {[%emt 0:00:21]} 6. e5 {[%emt 0:00:05]} d6 {[%emt 0:01:05][%cal Rd6e5]} 7. Bb5 {[%emt 0:00:07]} Nge7 {[%emt 0:01:49][%cal Rd6e5]} 8. Ne4 {[%emt 0:01:04]} dxe5 {[%emt 0:00:05]} 9. fxe5 {[%emt 0:00:08][%cal Od2d4]} O-O {[%emt 0:00:14]} 10. Nf6+ {[%emt 0:00:44]} Kh8 {[%emt 0:00:25][%cal Oc6e5] Threatening ...Nxe5!} 11. d4 {[%emt 0:01:13]} Nxd4 {[%emt 0:01:29] ...a6 would now be deadly.} 12. c3 {[%emt 0:00:36]} Nxb5 {[%emt 0:07:41]} 13. Qxd8 {[%emt 0:00:13]} Rxd8 {[%emt 0:00:04]} 14. Ng5 {[%emt 0:00:35]} Rf8 {[%emt 0:28:30]} 15. axb5 {[%emt 0:00:57]} h6 {[%emt 0:04:42]} 16. Nge4 {[%emt 0:01:33][%mdl 1024] White has compensation. A dynamic duo of knights.} b6 $1 {[%emt 0:06:26]} 17. O-O {[%emt 0:02:05]} g5 {[%emt 0:03:59]} 18. c4 {[%emt 0:19:28]} (18. h4 $1 $14 gxh4 19. Nd6) 18... Ng6 {[%emt 0:00:33]} 19. Ra3 $1 {[%emt 0:02:03] The position is equal.} Bxf6 {[%emt 0:09:12]} 20. Nxf6 {[%emt 0:08:09] [#] Rh3 is the strong threat.} Rd8 {[%emt 0:11:30][%cal Oc8b7]} 21. Rh3 {[%emt 0:05:28][%csl LRg5,LRh6]} (21. Ng4 $5 Kg7 $8 22. Rh3 $11) 21... Kg7 {[%emt 0:00:00]} 22. Nh5+ {[%emt 0:01:40]} Kf8 {[%emt 0:00:00]} 23. Nf6 {[%emt 0:00:53]} Kg7 {[%emt 0:04:28]} 24. Nh5+ {[%emt 0:01:00]} Kf8 {[%emt 0:00:05]} 25. Nf6 {[%emt 0:00:04]} Kg7 {[%emt 0:00:02]} 26. Nh5+ {[%emt 0:00:05]} Kf8 {[%emt 0:00:06]} 27. Nf6 {[%emt 0:00:15]} Kg7 {A rather calm draw.   Weighted Error Value: White=0.03 (flawless) /Black=0.04 (flawless) .  Mistake:       	White=1     	---        Inaccurate:     	---       	Black=1      OK:         	White=17    	Black=9      Best:        	---       	Black=3      Strong:       	White=1     	Black=1} 1/2-1/2

[Event "43rd Indian-chT 2023-24"]
[Site "Dharamsala"]
[Date "2024.04.02"]
[Round "7.5"]
[White "Krishna C R G"]
[Black "Ebenezer, Joseph"]
[Result "1-0"]
[ECO "A47"]
[WhiteElo "2445"]
[BlackElo "1889"]
[Annotator "TA"]
[PlyCount "103"]
[EventDate "2024.03.28"]
[EventType "team-tourn"]
[EventCountry "IND"]
[SourceTitle "playchess.com"]
[Source "ChessBase"]
[SourceQuality "1"]
[TimeControl "5400+30"]

{[%evp 9,103,25,20,20,49,49,47,47,60,51,64,57,60,61,58,62,64,62,148,135,166,136,161,162,309,290,297,264,318,316,304,307,300,271,276,222,244,260,245,216,302,243,339,259,253,231,229,223,229,229,233,222,221,220,270,278,279,197,280,268,279,299,301,310,306,316,316,306,316,311,325,314,334,321,326,319,320,300,355,347,565,398,416,351,653,653,671,657,712,741,757,745,819,758,29990,29991]} 1. d4 {[%emt 0:00:08]} Nf6 {[%emt 0:04:03]} 2. Nf3 {[%emt 0:00:04]} b6 {[%emt 0:00:16]} 3. e3 {[%emt 0:00:08]} Bb7 {[%emt 0:00:07]} 4. Bd3 {[%emt 0:00:04]} g6 {[%emt 0:00:05]} 5. O-O {[%emt 0:00:06]} Bg7 {[%emt 0:00:06]} 6. c4 {[%emt 0:00:04]} d6 {[%emt 0:00:18]} 7. Nc3 {[%emt 0:00:06]} Nbd7 {[%emt 0:00:05]} 8. e4 {[%emt 0:01:21] White is slightly better.} e5 {[%emt 0:00:12]} 9. d5 {[%emt 0:00:02]} a5 {[%emt 0:01:46]} 10. Bc2 {[%emt 0:01:52]} O-O {[%emt 0:04:47]} 11. Be3 {[%emt 0:03:09]} Ng4 {[%emt 0:03:06]} 12. Bg5 {[%emt 0:00:09]} f6 {[%emt 0:00:07]} 13. Bd2 {[%emt 0:00:11]} h5 {[%emt 0:01:54] White leaves nothing to chance now.} (13... Ba6 $14) 14. a3 {[%emt 0:02:19][%cal Ba2a3,Ba3b4][%mdl 32]} Qe8 {[%emt 0:00:37]} 15. b4 {[%emt 0:02:10]} axb4 {[%emt 0:03:12]} 16. axb4 {[%emt 0:00:03]} Qf7 {[%emt 0:00:16]} (16... Qe7 $142 17. h3 Nh6) 17. Nb5 $18 {[%emt 0:04:03]} Rxa1 {[%emt 0:01:45]} 18. Qxa1 {[%emt 0:00:19]} Ra8 {[%emt 0:00:10] Repels Qa7} 19. Qc1 {[%emt 0:09:23]} Kh7 {[%emt 0:09:37]} 20. Nxc7 {[%emt 0:00:36]} Rc8 {[%emt 0:02:02]} 21. Nb5 {[%emt 0:01:11][%cal Bc7b5,Bb5a7,Ba7c6][%mdl 32]} Qe7 {[%emt 0:01:49]} 22. Bd3 {[%emt 0:00:06]} Ba6 {[%emt 0:01:30] [#] Strongly threatening ...Bxb5.} 23. Na7 {[%emt 0:01:35]} Ra8 {[%emt 0:06:35]} 24. Nc6 {[%emt 0:00:03]} Qf8 {[%emt 0:00:51]} 25. Qb2 {[%emt 0:01:29]} Bh6 {[%emt 0:07:27]} 26. Ra1 {[%emt 0:02:21]} Bxd2 {[%emt 0:03:13]} 27. Qxd2 {[%emt 0:00:24]} Bb7 {[%emt 0:00:38]} 28. Qc1 {[%emt 0:00:11]} Nh6 {[%emt 0:04:29]} 29. Ra3 {[%emt 0:02:17]} Nf7 {[%emt 0:00:56]} 30. Qa1 {[%emt 0:01:05]} Kg7 {[%emt 0:11:09]} 31. Nd2 {[%emt 0:01:51][%cal Bf3d2,Bd2b1,Bb1c3][%mdl 32]} Qc8 {[%emt 0:10:00]} 32. Na7 {[%emt 0:02:46]} Qd8 {[%emt 0:04:36]} 33. Nb5 {[%emt 0:00:24]} Rb8 {[%emt 0:01:12]} (33... Rxa3 $142 34. Qxa3 Qb8) 34. Nb1 {[%emt 0:00:54]} Nf8 {[%emt 0:02:19]} 35. N1c3 {[%emt 0:00:22]} Bc8 {[%emt 0:05:58]} 36. Na7 {[%emt 0:00:41]} Ra8 {[%emt 0:01:12]} 37. Nc6 {[%emt 0:05:06][%csl LRa8,LRd8]} Rxa3 {[%emt 0:00:09]} 38. Qxa3 {[%emt 0:00:02]} Qd7 {[%emt 0:00:49]} 39. Qa7 {[%emt 0:03:36]} Qxa7 {[%emt 0:00:25]} 40. Nxa7 {[%emt 0:00:02]} Bb7 {[%emt 0:00:31]} 41. Kf1 {[%emt 0:00:55]} Nd7 {[%emt 0:00:20]} 42. Ke2 {[%emt 0:00:02]} Kf8 {[%emt 0:00:11]} 43. Bc2 {[%emt 0:00:05]} Ke7 {[%emt 0:01:49]} 44. Ba4 {[%emt 0:00:17]} Nb8 $2 {[%emt 0:06:08]} (44... Ba6 {might work better.} 45. Bb5 Bxb5) 45. Bb5 {[%emt 0:04:00] [#] Nc6+ is the strong threat.} Na6 {[%emt 0:01:33]} 46. Bc6 {[%emt 0:02:10]} Bxc6 {[%emt 0:00:35]} (46... Nd8 47. Na2 h4 48. Bxb7 Nxb7 49. Nc8+ Kd8) 47. dxc6 {[%emt 0:00:03][%cal Bd5c6,Bc6c7][%mdl 32] KNN-KNN} Kd8 {[%emt 0:01:09]} 48. Nd5 {[%emt 0:00:15][%csl LRb6,LRf6]} f5 {[%emt 0:00:43]} 49. exf5 {[%emt 0:00:58]} gxf5 {[%emt 0:00:01]} 50. Nb5 {[%emt 0:00:02]} Ng5 {[%emt 0:00:50]} 51. c7+ {[%emt 0:00:16]} Kd7 {[%emt 0:00:01]} 52. Nxb6+ {[%emt 0:00:06] Weighted Error Value: White=0.16 (very precise) /Black=0.44.  Mistake:       	---       	Black=5      Inaccurate:     	---       	Black=3      OK:         	White=21    	Black=10     Best:        	---       	Black=2} 1-0

[Event "43rd Indian-chT 2023-24"]
[Site "Dharamsala"]
[Date "2024.04.02"]
[Round "7.6"]
[White "Vigneshwaran, S."]
[Black "Aronyak Ghosh"]
[Result "0-1"]
[ECO "A32"]
[WhiteElo "1785"]
[BlackElo "2517"]
[Annotator "TA"]
[PlyCount "64"]
[EventDate "2024.03.28"]
[EventType "team-tourn"]
[EventCountry "IND"]
[SourceTitle "playchess.com"]
[Source "ChessBase"]
[SourceQuality "1"]
[TimeControl "5400+30"]

{[%evp 11,64,9,9,-14,9,-19,-8,-8,-10,0,4,-20,-42,-37,-35,-183,-197,-188,-53,-59,-102,-255,-252,-289,-275,-274,-281,-415,-439,-458,-472,-443,-453,-433,-433,-416,-355,-342,-214,-223,-217,-221,-208,-208,-214,-213,-174,-242,-187,-263,-241,-254,-258,-295,-287]} 1. Nf3 {[%emt 0:03:47]} Nf6 {[%emt 0:01:11]} 2. c4 {[%emt 0:00:05]} c5 {[%emt 0:01:16]} 3. d4 {[%emt 0:00:16]} cxd4 {[%emt 0:01:39]} 4. Nxd4 {[%emt 0:00:02]} e6 {[%emt 0:00:13]} 5. Nc3 {[%emt 0:02:32]} Bb4 {[%emt 0:01:56]} 6. Qb3 {[%emt 0:01:45]} Bc5 {[%emt 0:06:06]} 7. Be3 {[%emt 0:02:26][%cal Od4e6] [#] Hoping for Nxe6!} Na6 {[%emt 0:01:46]} 8. O-O-O {[%emt 0:05:00]} Ng4 {[%emt 0:05:22]} 9. Ne4 {[%emt 0:06:46] The position is equal.} Nxe3 {[%emt 0:02:19]} 10. Qxe3 {[%emt 0:00:18] Nxc5 is the strong threat.} Be7 {[%emt 0:00:28]} 11. Nb5 {[%emt 0:03:47] Nbd6+ would now be deadly. A dynamic duo of knights.} O-O {[%emt 0:00:49]} 12. Ned6 {[%emt 0:03:42]} Nc7 {[%emt 0:09:22]} 13. Nxa7 {[%emt 0:05:04]} ({Better is} 13. Kb1 $15) 13... Bxd6 $19 {[%emt 0:06:05]} 14. Rxd6 {[%emt 0:00:03]} Qe7 {[%emt 0:04:22]} (14... b5 $19 {White must now prevent ...Qe7.} 15. Nc6 (15. Nxb5 $2 Nxb5 16. Rb6 Qc7 $19) (15. cxb5 $2 Nd5 $19) 15... Qf6 (15... dxc6 $2 16. Rxd8 Rxd8 17. Qb6 $18)) 15. Rd2 $1 $15 {[%emt 0:07:27]} d5 {[%emt 0:09:07] White is now going downhill.} 16. cxd5 {[%emt 0:06:59]} (16. Qb6 $17) 16... Rd8 $19 {[%emt 0:00:39]} (16... Nxd5 17. Rxd5 Rxa7 18. Kb1 $15) 17. d6 {[%emt 0:09:41]} Rxd6 {[%emt 0:00:18]} 18. Rxd6 {[%emt 0:01:31]} Qxd6 {[%emt 0:00:03]} 19. Nxc8 {[%emt 0:00:08]} (19. Qd2 $142 Qxd2+ 20. Kxd2 Rxa7 21. a3) 19... Rxc8 {[%emt 0:00:03]} 20. Qd2 {[%emt 0:07:33]} Na6+ {[%emt 0:09:26]} 21. Kd1 {[%emt 0:00:12]} Qb6 {[%emt 0:00:07][%cal Oc8d8] [#] Threatens to win with ...Rd8!} 22. Ke1 {[%emt 0:03:52]} Nb4 {[%emt 0:01:04][%cal Oc8d8] Strongly threatening ...Rd8!} 23. e3 {[%emt 0:06:46]} Rc2 {[%emt 0:02:13]} ({Not} 23... Nxa2 24. h4 $17) 24. Qd4 {[%emt 0:05:35]} Qxd4 {[%emt 0:01:53]} 25. exd4 {[%emt 0:00:02]} Rxb2 {[%emt 0:00:06][%mdl 4096] Endgame. KRB-KRN} ({Don't take} 25... Nxa2 26. h4) 26. a3 {[%emt 0:00:14]} Nc6 {[%emt 0:00:20]} 27. d5 {[%emt 0:02:43]} exd5 {[%emt 0:00:26]} 28. h4 {[%emt 0:00:11]} Rb1+ {[%emt 0:03:44]} 29. Ke2 {[%emt 0:00:17]} (29. Kd2 {was the only defense.}) 29... Kf8 {[%emt 0:01:36]} 30. g4 {[%emt 0:03:33]} (30. g3 $142) 30... Ke7 {[%emt 0:03:13]} 31. Rh3 {[%emt 0:01:29]} Nd4+ {[%emt 0:00:45]} 32. Kd3 {[%emt 0:00:18]} Ne6 {[%emt 0:17:22] Weighted Error Value: White=0.36/Black=0.25 (precise) .  Mistake:       	White=5     	Black=1      Inaccurate:     	White=1     	Black=1      OK:         	White=5     	Black=13     Best:        	White=4     	Black=2      Strong:       	White=1     	---} (32... Rxf1 33. Kxd4 Rxf2 34. Kxd5 $17) 0-1